bitfinex/quotes_ETHUSD_20250526
["timestamp","ask_amount","ask_price","bid_price","bid_amount"]
[1748283142686,1.96947194,2538.8,2538.5,0.39394856]
[1748283143268,3.49998822,2538.9,2538.5,4.33325235]
[1748283143583,2.06938822,2538.9,2538.5,4.33325235]
[1748283143764,2.06938822,2538.9,2538.5,8.39394856]
[1748283144254,1.96945058,2538.8,2538.5,8.39394856]
[1748283145296,0.1,2538.9,2538.5,4.41143765]
[1748283145583,2.06935786,2538.9,2538.6,1.3604]
[1748283147547,2.06935786,2538.9,2538.6,1.83260595]
[1748283147986,1.96884865,2539.6,2539.2,8.0]
[1748283148186,1.96884865,2539.6,2539.3,4.288]
[1748283148657,1.96884865,2539.6,2539.3,4.76020595]
[1748283149267,1.96877441,2539.7,2539.3,4.76020595]
[1748283149766,1.96882379,2539.6,2539.3,4.76020595]
[1748283149967,1.96876355,2539.7,2539.3,4.76020595]
[1748283150163,1.96881709,2539.6,2539.3,4.76020595]
[1748283150485,3.47057313,2539.8,2539.3,4.288]
[1748283150689,1.96889649,2539.5,2539.3,4.288]
[1748283150901,1.96889649,2539.5,2539.3,4.67164831]
[1748283151054,1.96885921,2539.6,2539.3,4.67164831]
[1748283151850,2.36268791,2539.5,2539.3,4.67164831]
[1748283152108,2.36268791,2539.5,2539.3,0.38364831]
[1748283152109,2.36271544,2539.5,2539.3,0.38364831]
[1748283152255,2.36248375,2539.7,2539.3,8.0]
[1748283152458,2.36257678,2539.6,2539.3,8.0]
[1748283152691,2.36266901,2539.6,2539.3,8.0]
[1748283153006,1.4266,2539.5,2539.1,0.47220595]
[1748283153495,2.36276285,2539.4,2539.1,0.85868735]
[1748283153871,2.36291845,2539.3,2539.1,0.85868735]
[1748283154071,2.36291845,2539.3,2539.1,0.3864814]
[1748283154272,2.36291845,2539.3,2539.0,8.0]
[1748283154708,2.36281566,2539.4,2539.0,8.0]
[1748283154871,2.36281904,2539.4,2539.0,8.0]
[1748283156826,2.36286603,2539.3,2539.0,8.0]
[1748283157031,2.36281145,2539.4,2539.0,8.0]
[1748283157406,3.78928922,2539.5,2539.0,8.0]
[1748283157600,2.36282653,2539.4,2539.0,8.0]
[1748283157827,2.36285736,2539.3,2539.0,8.0]
[1748283158132,2.36281818,2539.4,2539.0,8.39124548]
[1748283158332,3.78930858,2539.5,2539.2,8.0]
[1748283158503,2.36271774,2539.5,2539.2,8.0]
[1748283159530,2.36263232,2539.6,2539.2,8.0]
[1748283159734,2.36271948,2539.5,2539.2,8.0]
[1748283160430,1.4565,2539.7,2539.0,9.77164548]
[1748283160631,2.36289894,2539.3,2539.1,4.287]
[1748283160989,1.4565,2539.7,2539.1,4.287]
[1748283161237,2.36274073,2539.5,2539.1,5.7768]
[1748283161442,2.36274073,2539.5,2539.1,9.71519991]
[1748283161631,2.36274073,2539.5,2539.1,13.89945366]
[1748283161830,2.36274073,2539.5,2539.1,9.96105375]
[1748283162047,2.3626324,2539.6,2539.2,8.0]
[1748283162648,2.36265756,2539.6,2539.2,8.0]
[1748283162943,2.36267433,2539.5,2539.2,8.0]
[1748283163244,2.36254139,2539.7,2539.2,11.9381624]
[1748283163543,2.36254139,2539.7,2539.2,11.93816862]
[1748283163843,2.36257743,2539.6,2539.2,11.93816862]
[1748283164603,2.36257743,2539.6,2539.2,12.41037457]
[1748283165843,2.36257743,2539.6,2539.2,8.47220595]
[1748283166145,2.36262219,2539.6,2539.2,8.47220595]
[1748283166343,2.36262219,2539.6,2539.2,12.410434]
[1748283166854,2.36262219,2539.6,2539.4,8.0]
[1748283167223,2.36253022,2539.7,2539.4,8.0]
[1748283167745,2.3625785,2539.6,2539.4,8.0]
[1748283169143,1.6034,2539.9,2539.4,8.0]
[1748283169316,2.36248375,2539.7,2539.4,8.0]
[1748283169832,2.36261855,2539.6,2539.4,8.0]
[1748283170711,2.36250727,2539.7,2539.5,1.4898]
[1748283171848,2.36250727,2539.7,2539.4,8.0]
[1748283173122,2.36262085,2539.6,2539.4,8.0]
[1748283174158,2.36266981,2539.5,2539.4,8.0]
[1748283174715,2.36263091,2539.6,2539.4,8.0]
[1748283175247,2.36248658,2539.7,2539.4,8.0]
[1748283175417,2.36265745,2539.6,2539.4,8.0]
[1748283175752,2.36266981,2539.5,2539.4,8.0]
[1748283176447,2.36252619,2539.7,2539.4,8.0]
[1748283176614,1.5583,2539.9,2539.4,8.0]
[1748283176615,2.36261772,2539.6,2539.4,8.0]
[1748283177749,2.36261772,2539.6,2539.4,8.47220595]
[1748283178753,2.36261772,2539.6,2539.5,0.47220595]
[1748283180052,2.36251489,2539.7,2539.4,8.47220595]
[1748283180755,2.3626093,2539.6,2539.4,8.47220595]
[1748283181143,2.36254122,2539.7,2539.4,8.47220595]
[1748283181342,2.36257776,2539.6,2539.4,8.47220595]
[1748283181718,2.36254016,2539.7,2539.4,8.47220595]
[1748283182727,2.36257678,2539.6,2539.5,0.47220595]
[1748283183654,2.36239073,2539.8,2539.5,0.47220595]
[1748283183825,2.36253798,2539.7,2539.5,0.47220595]
[1748283185147,2.36244602,2539.8,2539.5,0.47220595]
[1748283185463,2.36250609,2539.7,2539.5,0.47220595]
[1748283185864,3.86397678,2539.6,2539.5,0.47220595]
[1748283186025,4.48662502,2539.6,2539.5,0.47220595]
[1748283186237,2.36266981,2539.5,2539.4,8.0]
[1748283187368,2.36266981,2539.5,2539.3,8.49568695]
[1748283187766,2.36276285,2539.4,2539.3,8.49568695]
[1748283188579,2.36276285,2539.4,2539.3,8.96737304]
[1748283190382,2.36276285,2539.4,2539.3,12.75168609]
[1748283191982,2.36276285,2539.4,2539.3,0.47168609]
[1748283192167,2.98544692,2539.4,2539.3,0.47168609]
[1748283192553,2.36304202,2539.1,2539.0,8.85655269]
[1748283192759,2.36274606,2539.5,2539.0,16.97930495]
[1748283192959,2.36274606,2539.5,2539.4,12.18425375]
[1748283193773,2.36274606,2539.5,2539.4,8.0]
[1748283194787,2.73079812,2539.5,2539.4,8.0]
[1748283195652,2.36274606,2539.5,2539.4,8.0]
[1748283197684,2.36274606,2539.5,2539.4,12.18425375]
[1748283198484,5.3829,2539.8,2539.5,8.0]
[1748283198485,2.36253245,2539.7,2539.5,8.0]
[1748283198683,2.46236489,2539.9,2539.8,8.0]
[1748283201731,2.36248375,2539.7,2539.6,0.47168609]
[1748283202078,2.36257678,2539.6,2539.5,0.47168609]
[1748283203488,2.36276217,2539.5,2539.3,8.0]
[1748283203822,2.36276285,2539.4,2539.3,8.0]
[1748283223276,2.36276285,2539.4,2539.3,8.47168609]
[1748283226285,2.36276285,2539.4,2539.3,8.0]
[1748283227443,2.36276285,2539.4,2539.3,8.47168609]
[1748283229599,2.36262464,2539.6,2539.3,8.47168609]
[1748283229600,2.3626971,2539.5,2539.3,8.47168609]
[1748283229805,2.36276285,2539.4,2539.3,0.47168609]
[1748283229986,2.36276285,2539.4,2539.3,4.65593984]
[1748283230188,2.36272144,2539.5,2539.4,8.0]
[1748283231918,2.36254941,2539.7,2539.4,8.0]
[1748283232110,2.36242679,2539.8,2539.5,4.18425375]
[1748283232707,2.36248977,2539.7,2539.5,4.18425375]
[1748283232915,2.36240814,2539.8,2539.5,4.18425375]
[1748283233118,2.36250506,2539.7,2539.6,0.47168609]
[1748283234436,2.36250506,2539.7,2539.5,4.65593984]
[1748283235240,2.3624922,2539.7,2539.5,4.65593984]
[1748283235833,0.1,2539.9,2539.5,4.65593984]
[1748283236013,2.46234918,2539.9,2539.8,8.0]
[1748283236730,0.1,2539.9,2539.8,8.0]
[1748283239330,2.46229772,2539.9,2539.8,8.0]
[1748283239644,0.1,2539.9,2539.8,8.0]
[1748283239853,2.46229772,2539.9,2539.8,8.0]
[1748283240347,0.1,2539.9,2539.8,9.4187]
[1748283240650,2.46229772,2539.9,2539.8,9.4187]
[1748283241247,0.1,2539.9,2539.8,9.4187]
[1748283244257,0.1,2539.9,2539.8,13.6857]
[1748283244552,1.5035,2540.6,2540.1,3.93679225]
[1748283244728,2.36177796,2540.5,2540.3,4.18425375]
[1748283245314,2.36175125,2540.5,2540.3,4.18425375]
[1748283245519,2.36183278,2540.4,2540.3,0.40188845]
[1748283245734,2.36192575,2540.3,2540.2,16.202]
[1748283245931,2.36192575,2540.3,2540.2,8.0]
[1748283246134,2.36192575,2540.3,2540.2,12.267]
[1748283246333,2.36192575,2540.3,2540.2,8.0]
[1748283246535,2.36192575,2540.3,2540.2,12.267]
[1748283249363,2.36183278,2540.4,2540.2,12.267]
[1748283249724,2.36192575,2540.3,2540.2,12.267]
[1748283251435,2.36192575,2540.3,2540.1,8.11925375]
[1748283251436,2.36218112,2540.1,2540.0,12.266]
[1748283251670,2.36206322,2540.2,2540.0,16.2]
[1748283253043,2.36211172,2540.1,2540.0,12.266]
[1748283253238,2.36173981,2540.5,2540.0,8.0]
[1748283253452,2.36211172,2540.1,2540.0,12.259]
[1748283255171,2.36203447,2540.2,2540.1,8.0]
[1748283255379,2.36211172,2540.1,2540.0,4.259]
[1748283258061,1.4614,2540.3,2540.0,4.259]
[1748283258266,2.3619641,2540.3,2540.0,4.259]
[1748283259175,2.3619641,2540.3,2540.0,8.44325375]
[1748283259373,2.36194035,2540.3,2540.0,8.44325375]
[1748283259557,3.83109924,2540.5,2540.0,8.44325375]
[1748283260153,2.36190205,2540.4,2540.0,8.44325375]
[1748283260354,2.3619787,2540.3,2540.0,8.44325375]
[1748283260652,2.36200749,2540.3,2540.0,8.91385986]
[1748283260988,2.36183278,2540.4,2540.0,8.91385986]
[1748283261186,2.36206033,2540.2,2540.0,4.65485986]
[1748283261693,2.36211172,2540.1,2540.0,0.47060611]
[1748283263012,2.36207378,2540.2,2540.0,0.47060611]
[1748283263713,2.36207378,2540.2,2539.9,20.87929306]
[1748283264421,2.36215126,2540.1,2539.9,20.87929306]
[1748283264711,2.36220472,2540.0,2539.9,8.47060611]
[1748283265918,2.36220472,2540.0,2539.9,8.0]
[1748283266619,2.36220472,2540.0,2539.7,4.68629306]
[1748283266620,3.83169073,2539.8,2539.7,4.68629306]
[1748283266983,3.83169073,2539.8,2539.7,4.21568695]
[1748283270211,2.36248375,2539.7,2539.6,8.0]
[1748283277344,6.29611262,2540.1,2539.6,8.0]
[1748283277345,1.3725,2540.0,2539.6,12.18425375]
[1748283277541,1.3725,2540.3,2539.9,4.18425375]
[1748283277713,2.36215133,2540.1,2540.0,8.0]
[1748283293321,2.36191754,2540.4,2540.0,8.0]
[1748283293549,2.36183278,2540.4,2540.3,12.18425375]
[1748283293856,2.36183278,2540.4,2540.3,8.0]
[1748283296237,2.36183278,2540.4,2540.3,8.39605673]
[1748283297725,2.36183278,2540.4,2540.3,9.82205673]
[1748283297922,2.36183278,2540.4,2540.3,8.39605673]
[1748283299327,2.36183278,2540.4,2540.3,8.0]
[1748283301781,2.36183278,2540.4,2540.0,4.68629306]
[1748283301782,2.36211172,2540.1,2540.0,4.68629306]
[1748283301990,2.41132399,2540.1,2540.0,4.68629306]
[1748283302285,2.41132399,2540.1,2539.7,0.47060611]
[1748283302286,2.36239073,2539.8,2539.7,0.47060611]
[1748283302479,2.36239073,2539.8,2539.7,8.47060611]
[1748283302857,3.73769073,2539.8,2539.7,8.47060611]
[1748283303258,3.73769073,2539.8,2539.7,8.0]
[1748283305198,2.36266981,2539.5,2539.4,0.47060611]
[1748283305906,2.36261467,2539.6,2539.4,0.47060611]
[1748283306069,2.36267054,2539.5,2539.3,5.67565375]
[1748283306973,2.36260203,2539.6,2539.4,8.0]
[1748283307482,2.36266981,2539.5,2539.4,8.0]
[1748283307899,3.74466981,2539.5,2539.4,8.0]
[1748283308408,2.36266981,2539.5,2539.4,8.0]
[1748283314110,2.36289724,2539.3,2539.1,16.187]
[1748283314310,5.317,2539.7,2539.2,8.0]
[1748283314490,5.317,2539.7,2539.2,9.2533]
[1748283314813,2.36280138,2539.4,2539.2,9.2533]
[1748283315709,2.3628559,2539.3,2539.2,9.2533]
[1748283315912,2.36304202,2539.1,2539.0,5.07115966]
[1748283316104,2.36304202,2539.1,2539.0,8.85547271]
[1748283316587,2.36304202,2539.1,2539.0,8.3848666]
[1748283318819,2.36304202,2539.1,2539.0,8.0]
[1748283319179,2.36304202,2539.1,2539.0,8.38412795]
[1748283319875,3.935,2539.5,2539.0,8.38412795]
[1748283319876,1.2813,2539.6,2539.1,8.0]
[1748283320093,2.36290382,2539.3,2539.2,4.18425375]
[1748283320374,2.36290382,2539.3,2539.2,16.11925375]
[1748283321834,2.36290382,2539.3,2539.2,16.11925375]
[1748283321982,2.36290382,2539.3,2539.2,16.12025375]
[1748283323412,2.36290382,2539.3,2539.2,12.18425375]
[1748283331394,2.36290382,2539.3,2539.2,8.0]
[1748283333029,2.36290382,2539.3,2539.2,8.47060611]
[1748283338939,3.39700382,2539.3,2539.2,0.47060611]
[1748283339233,2.36304202,2539.1,2539.0,17.66464884]
[1748283339434,2.36304202,2539.1,2539.0,17.03573406]
[1748283340034,2.36304202,2539.1,2539.0,0.85473406]
[1748283340826,2.36304202,2539.1,2539.0,13.03898781]
[1748283341916,2.36304202,2539.1,2539.0,8.85473406]
[1748283342328,2.93905336,2539.1,2539.0,0.47060611]
[1748283342514,4.33492101,2539.1,2539.0,0.47060611]
[1748283344064,2.36350744,2538.6,2538.5,8.47060611]
[1748283344205,1.97187899,2539.1,2538.5,8.47060611]
[1748283344206,1.39586765,2539.1,2538.7,0.40060456]
[1748283344408,2.73100967,2539.1,2539.0,12.18425375]
[1748283344621,2.36304202,2539.1,2539.0,12.18425375]
[1748283346157,2.36304202,2539.1,2539.0,8.0]
[1748283352136,3.32314202,2539.1,2539.0,8.0]
[1748283355723,2.36322816,2538.9,2538.8,0.47060611]
[1748283355925,2.36322816,2538.9,2538.8,8.47060611]
[1748283356118,2.36322816,2538.9,2538.8,0.47060611]
[1748283356323,2.36332125,2538.8,2538.7,12.60696322]
[1748283358664,2.36332125,2538.8,2538.7,12.21568695]
[1748283358960,2.36332125,2538.8,2538.7,8.0]
[1748283359995,2.36328149,2538.9,2538.8,8.0]
[1748283360171,2.36328149,2538.9,2538.7,8.5293]
[1748283360373,2.36328149,2538.9,2538.8,4.18425375]
[1748283364996,2.36332125,2538.8,2538.7,0.47060611]
[1748283365483,3.39032125,2538.8,2538.7,0.47060611]
[1748283365871,3.39032125,2538.8,2538.4,0.6667]
[1748283365872,2.36360055,2538.5,2538.4,0.6667]
[1748283366277,2.36360055,2538.5,2538.4,4.85095375]
[1748283367903,2.36360055,2538.5,2538.4,5.24867386]
[1748283368698,2.36360055,2538.5,2538.4,4.85095375]
[1748283368994,2.36360055,2538.5,2538.4,12.85095375]
[1748283379010,2.83631199,2538.5,2538.4,0.6667]
[1748283379218,3.81471199,2538.5,2538.4,0.6667]
[1748283380195,2.73104733,2538.5,2538.4,0.6667]
[1748283380366,2.73104733,2538.5,2538.4,8.6667]
[1748283380997,2.36360055,2538.5,2538.4,8.6667]
[1748283382775,2.36350993,2538.6,2538.5,0.5221]
[1748283382986,2.36350993,2538.6,2538.5,4.70635375]
[1748283383813,2.36350993,2538.6,2538.5,5.17695986]
[1748283387128,2.36350993,2538.6,2538.5,4.65485986]
[1748283390296,2.9361431,2538.6,2538.5,0.47060611]
[1748283390528,3.9355431,2538.6,2538.5,0.47060611]
[1748283390837,7.8725431,2538.6,2538.5,0.47060611]
[1748283391501,2.36360055,2538.5,2538.4,4.88238695]
[1748283391737,3.62355709,2538.5,2538.4,4.88238695]
[1748283391949,3.99176445,2538.5,2538.4,4.88238695]
[1748283393733,5.01836445,2538.5,2538.4,4.88238695]
[1748283394503,5.01836445,2538.5,2538.4,0.6667]
[1748283396843,3.99176445,2538.5,2538.4,0.6667]
[1748283397031,2.73180791,2538.5,2538.4,0.6667]
[1748283397535,2.36360055,2538.5,2538.4,0.6667]
[1748283402059,3.36800055,2538.5,2538.4,0.6667]
[1748283402355,3.7360911,2538.5,2538.4,0.6667]
[1748283403429,7.6730911,2538.5,2538.4,0.6667]
[1748283403635,8.97035669,2538.5,2538.4,0.6667]
[1748283410477,5.03335669,2538.5,2538.4,0.6667]
[1748283410984,8.97035669,2538.5,2538.4,0.6667]
[1748283414185,8.97135669,2538.5,2538.4,0.6667]
[1748283415006,5.03335669,2538.5,2538.4,0.6667]
[1748283415170,8.97135669,2538.5,2538.4,0.6667]
[1748283415668,5.03335669,2538.5,2538.4,0.6667]
[1748283415871,8.97135669,2538.5,2538.4,0.6667]
[1748283416090,7.96695669,2538.5,2538.4,0.6667]
[1748283416309,4.02895669,2538.5,2538.4,0.6667]
[1748283418007,5.66310576,2538.5,2538.4,0.6667]
[1748283418208,2.36387991,2538.2,2538.1,0.1]
[1748283418369,7.93604157,2538.2,2538.1,0.1]
[1748283418567,8.25487046,2538.2,2538.1,0.1]
[1748283422331,8.20487046,2538.2,2538.1,0.1]
[1748283424701,2.3646252,2537.4,2537.3,12.70525375]
[1748283428147,2.36445723,2537.6,2537.4,0.5184]
[1748283428310,2.36445723,2537.6,2537.5,12.70265375]
[1748283430642,2.36439667,2537.7,2537.5,12.70265375]
[1748283431309,2.36434244,2537.8,2537.5,12.70265375]
[1748283431510,2.36434244,2537.8,2537.7,12.18425375]
[1748283431923,2.83719633,2537.8,2537.5,0.5184]
[1748283432128,2.36443883,2537.6,2537.4,0.47060611]
[1748283432324,2.36453201,2537.5,2537.4,0.47060611]
[1748283432760,2.3647184,2537.3,2537.2,8.0]
[1748283436181,2.36470331,2537.4,2537.2,8.0]
[1748283436473,2.36456967,2537.5,2537.4,8.0]
[1748283443002,2.36474944,2537.3,2537.1,0.57060611]
[1748283443154,2.4140831,2537.2,2537.1,0.57060611]
[1748283443353,2.3648116,2537.2,2537.1,0.57060611]
[1748283443559,2.3648116,2537.2,2537.1,12.75485986]
[1748283443755,2.36475275,2537.3,2537.2,8.0]
[1748283443978,2.3648116,2537.2,2537.1,4.80265375]
[1748283447369,2.3648116,2537.2,2537.1,5.27325986]
[1748283447786,2.3648116,2537.2,2537.1,13.27325986]
[1748283448303,2.3648116,2537.2,2537.1,9.08900611]
[1748283448512,2.3648116,2537.2,2537.1,12.80265375]
[1748283449409,2.3648116,2537.2,2537.1,12.28425375]
[1748283450398,2.83776471,2537.2,2537.1,8.1]
[1748283453185,2.83776471,2537.2,2537.1,0.1]
[1748283453186,3.80306471,2537.2,2537.1,0.1]
[1748283453387,8.10947025,2537.2,2537.1,0.1]
[1748283457921,8.65947025,2537.2,2537.1,0.1]
[1748283458883,8.10947025,2537.2,2537.1,0.1]
[1748283459419,8.65947025,2537.2,2537.1,0.1]
[1748283462535,2.36555748,2536.4,2536.3,8.0]
[1748283465863,2.36574402,2536.2,2536.1,0.1]
[1748283466425,6.30574402,2536.2,2536.1,0.1]
[1748283466626,2.36574402,2536.2,2536.1,0.1]
[1748283477987,2.36574402,2536.2,2536.1,8.1]
[1748283479970,0.8025,2537.0,2536.1,8.1]
[1748283480147,2.36537096,2536.6,2536.2,4.18425375]
[1748283480352,2.36574402,2536.2,2536.1,8.1]
[1748283480553,2.36574402,2536.2,2536.1,0.1]
[1748283482085,3.69844402,2536.2,2536.1,0.1]
[1748283482391,4.9355114,2536.2,2536.1,0.1]
[1748283482588,5.30187615,2536.2,2536.1,0.1]
[1748283482891,5.35117547,2536.2,2536.1,0.1]
[1748283483101,5.30187615,2536.2,2536.1,0.1]
[1748283484079,9.24287615,2536.2,2536.1,0.1]
[1748283485873,8.69287615,2536.2,2536.1,0.1]
[1748283486050,3.96917615,2536.2,2536.1,0.1]
[1748283486247,2.73210877,2536.2,2536.1,0.1]
[1748283486866,2.36574402,2536.2,2536.1,0.1]
[1748283492740,2.73258324,2536.2,2536.1,0.1]
[1748283495645,2.36574402,2536.2,2536.1,0.1]
[1748283498614,2.36571049,2536.3,2536.1,8.1]
[1748283498832,2.36571049,2536.3,2536.2,12.18425375]
[1748283502643,2.36571049,2536.3,2536.2,8.0]
[1748283527697,2.36571049,2536.3,2536.2,11.94]
[1748283527905,2.36571049,2536.3,2536.2,12.41185787]
[1748283532810,2.36571049,2536.3,2536.2,8.47185787]
[1748283533184,2.88812374,2536.3,2536.2,0.47185787]
[1748283533405,2.88812715,2536.3,2536.2,0.47185787]
[1748283533716,3.20620167,2536.3,2536.2,0.47185787]
[1748283534509,3.20620167,2536.3,2536.2,8.47185787]
[1748283534819,2.73307264,2536.3,2536.2,8.0]
[1748283535525,2.36571049,2536.3,2536.2,8.0]
[1748283537820,2.36574402,2536.2,2536.1,0.57185787]
[1748283538020,2.36574402,2536.2,2536.1,8.57185787]
[1748283538372,2.36574402,2536.2,2536.1,8.1]
[1748283538578,3.15642746,2536.2,2536.1,8.1]
[1748283538823,3.15642746,2536.2,2536.1,0.1]
[1748283539681,3.52356081,2536.2,2536.1,0.1]
[1748283540528,3.15642746,2536.2,2536.1,0.1]
[1748283541631,2.36574402,2536.2,2536.1,4.28425375]
[1748283542278,2.36574402,2536.2,2536.1,4.75611162]
[1748283544537,2.36574402,2536.2,2536.1,0.57185787]
[1748283544763,2.36574402,2536.2,2536.1,4.75611162]
[1748283545728,2.36574402,2536.2,2536.1,4.28425375]
[1748283546046,2.36569467,2536.3,2536.1,4.28425375]
[1748283546812,2.36560208,2536.4,2536.1,4.75611162]
[1748283547012,2.36560208,2536.4,2536.3,12.18425375]
[1748283547236,1.98449595,2536.8,2536.3,20.06798656]
[1748283547425,4.34968043,2536.8,2536.7,12.18425375]
[1748283547621,5.10027147,2536.8,2536.7,12.18425375]
[1748283548751,1.98449595,2536.8,2536.7,12.18425375]
[1748283548936,1.98449595,2536.8,2536.7,16.12525375]
[1748283549316,2.36511372,2536.9,2536.8,8.0]
[1748283549735,2.36518448,2536.8,2536.7,16.12525375]
[1748283550217,4.34931638,2537.2,2536.7,16.12525375]
[1748283550218,2.36509125,2536.9,2536.8,8.0]
[1748283550825,2.36505047,2537.0,2536.7,16.12525375]
[1748283551050,2.36505047,2537.0,2536.9,12.18425375]
[1748283551441,2.36499802,2537.0,2536.9,4.18425375]
[1748283553142,3.11679802,2537.0,2536.9,4.18425375]
[1748283554250,3.11679802,2537.0,2536.6,0.47185787]
[1748283554251,2.36518448,2536.8,2536.6,0.47185787]
[1748283554474,3.16635586,2536.7,2536.6,0.47185787]
[1748283554646,3.11707772,2536.7,2536.6,0.47185787]
[1748283554855,4.29581307,2536.7,2536.6,0.47185787]
[1748283555288,2.36546422,2536.5,2536.4,4.18425375]
[1748283556183,2.36546422,2536.5,2536.4,12.18425375]
[1748283556391,2.36539139,2536.6,2536.4,4.18425375]
[1748283556693,2.36546422,2536.5,2536.3,8.0]
[1748283556855,2.36546422,2536.5,2536.4,4.18425375]
[1748283557292,2.36555748,2536.4,2536.3,8.0]
[1748283561806,2.36565075,2536.3,2536.2,4.18425375]
[1748283562303,2.36565075,2536.3,2536.2,12.18425375]
[1748283564689,0.7723,2536.8,2536.3,8.0]
[1748283564876,2.36552914,2536.5,2536.2,8.0]
[1748283565076,2.36552914,2536.5,2536.4,12.18425375]
[1748283565476,2.36541487,2536.6,2536.4,12.18425375]
[1748283565678,2.36541487,2536.6,2536.5,8.0]
[1748283566118,2.36528303,2536.7,2536.5,8.0]
[1748283566414,2.73141017,2536.9,2536.7,8.0]
[1748283566415,0.36627672,2536.9,2536.7,8.0]
[1748283566614,2.36523194,2536.8,2536.7,8.0]
[1748283568425,2.36523194,2536.8,2536.5,0.38420616]
[1748283568426,2.36537096,2536.6,2536.5,0.38420616]
[1748283568610,2.36537096,2536.6,2536.4,0.47185787]
[1748283568611,2.36546422,2536.5,2536.4,0.47185787]
[1748283569205,3.16796422,2536.5,2536.4,0.47185787]
[1748283570298,2.36555748,2536.4,2536.3,8.0]
[1748283574699,2.36574402,2536.2,2536.1,0.1]
[1748283574905,2.36574402,2536.2,2536.1,4.28425375]
[1748283580947,2.36560894,2536.4,2536.2,8.0]
[1748283581131,2.36560894,2536.4,2536.3,12.18425375]
[1748283581945,2.73172862,2536.8,2536.3,16.12425375]
[1748283582245,2.36522885,2536.8,2536.7,12.18425375]
[1748283582478,2.36522885,2536.8,2536.7,8.0]
[1748283582645,2.36522885,2536.8,2536.7,12.18425375]
[1748283586454,2.36522885,2536.8,2536.7,8.0]
[1748283588704,2.91626294,2536.8,2536.7,8.0]
[1748283589008,3.19136422,2536.5,2536.4,8.47185787]
[1748283589594,3.19136422,2536.5,2536.4,0.47185787]
[1748283590492,2.36555748,2536.4,2536.3,4.21568695]
[1748283590695,3.15778889,2536.4,2536.3,4.21568695]
[1748283592912,2.36565075,2536.3,2536.2,4.18425375]
[1748283596727,2.36565075,2536.3,2536.2,12.18425375]
[1748283601816,2.36565075,2536.3,2536.2,12.18425375]
[1748283602510,2.36565075,2536.3,2536.2,12.65611162]
[1748283603454,2.36565075,2536.3,2536.2,12.18425375]
[1748283610957,5.92449595,2536.9,2536.3,8.0]
[1748283611158,5.92449595,2536.9,2536.1,0.1]
[1748283611159,2.36574402,2536.2,2536.1,0.1]
[1748283611370,7.12094402,2536.2,2536.1,0.1]
[1748283612249,7.48825694,2536.2,2536.1,0.1]
[1748283612445,8.71020736,2536.2,2536.1,0.1]
[1748283614510,4.77020736,2536.2,2536.1,0.1]
[1748283614811,8.71120736,2536.2,2536.1,0.1]
[1748283615848,4.77020736,2536.2,2536.1,0.1]
[1748283616055,8.71120736,2536.2,2536.1,0.1]
[1748283620045,9.26120736,2536.2,2536.1,0.1]
[1748283622349,12.82509647,2536.2,2536.1,0.1]
[1748283623246,12.82509647,2536.2,2535.4,0.141]
[1748283623247,2.36639716,2535.5,2535.4,0.141]
[1748283623838,2.36623555,2535.7,2535.5,8.0]
[1748283624076,2.73347845,2535.8,2535.5,12.18425375]
[1748283624247,2.73347845,2535.8,2535.7,12.18425375]
[1748283624428,2.36616553,2535.8,2535.7,12.18425375]
[1748283630629,2.36616553,2535.8,2535.7,4.18425375]
[1748283634684,2.36616553,2535.8,2535.7,12.18425375]
[1748283636573,0.7849,2536.5,2535.7,16.12525375]
[1748283636774,2.36546422,2536.5,2536.4,4.18425375]
[1748283637073,2.36555748,2536.4,2536.2,4.18425375]
[1748283637274,2.3658373,2536.1,2536.0,12.18425375]
[1748283637775,2.76939595,2536.7,2536.0,12.18425375]
[1748283637946,4.34977367,2536.7,2536.6,12.18425375]
[1748283638561,1.98449595,2536.7,2536.6,12.18425375]
[1748283639098,4.34977367,2536.7,2536.6,12.18425375]
[1748283640500,4.34977367,2536.7,2536.6,12.57283007]
[1748283640800,2.36527772,2536.7,2536.6,12.57283007]
[1748283644886,2.36520987,2536.8,2536.7,8.0]
[1748283645202,3.19057579,2537.6,2536.7,8.0]
[1748283645494,2.3646252,2537.4,2537.3,4.18425375]
[1748283645664,2.3646252,2537.4,2537.3,12.18425375]
[1748283650602,2.3646252,2537.4,2537.0,8.41268695]
[1748283650603,2.3648116,2537.2,2537.0,4.21568695]
[1748283650790,2.36490481,2537.1,2537.0,12.21568695]
[1748283650991,3.15720481,2537.1,2537.0,4.21568695]
[1748283652001,2.36546422,2536.5,2536.4,8.0]
[1748283652382,2.36546422,2536.5,2536.4,12.18425375]
[1748283652699,2.36565075,2536.3,2536.2,8.37625375]
[1748283652906,2.36565075,2536.3,2536.2,16.37625375]
[1748283653473,2.36565075,2536.3,2536.2,16.77187571]
[1748283656502,2.36565075,2536.3,2536.2,12.58762196]
[1748283657000,2.36565075,2536.3,2536.2,12.192]
[1748283657300,2.36565075,2536.3,2536.2,12.59019363]
[1748283657706,2.36565075,2536.3,2536.2,16.77444738]
[1748283659972,7.10799286,2536.6,2536.3,8.0]
[1748283659973,2.36542236,2536.6,2536.3,8.0]
[1748283660190,2.36528141,2536.7,2536.6,8.0]
[1748283661076,2.3650696,2537.0,2536.6,8.0]
[1748283661290,2.3650696,2537.0,2536.9,4.18425375]
[1748283661694,2.36518448,2536.8,2536.7,12.18425375]
[1748283663217,2.36518448,2536.8,2536.7,8.0]
[1748283663379,2.91896832,2536.8,2536.7,8.0]
[1748283666417,2.36518448,2536.8,2536.7,8.0]
[1748283667618,0.8327,2537.2,2536.7,12.18425375]
[1748283667791,2.3648116,2537.2,2537.1,4.18425375]
[1748283667991,2.3648116,2537.2,2537.1,12.18425375]
[1748283669422,2.3648116,2537.2,2537.1,8.0]
[1748283674936,0.8327,2537.5,2537.2,8.0]
[1748283675235,2.3647184,2537.3,2537.2,8.0]
[1748283679134,3.1596184,2537.3,2537.2,8.0]
[1748283679334,2.36483308,2537.2,2537.1,8.0]
[1748283685353,2.36483308,2537.2,2536.7,0.47185787]
[1748283685354,2.36509125,2536.9,2536.7,0.47185787]
[1748283685555,3.14208448,2536.8,2536.7,0.47185787]
[1748283687043,2.36546422,2536.5,2536.4,8.0]
[1748283689327,2.36555748,2536.4,2536.2,4.81569617]
[1748283689531,2.36555748,2536.4,2536.2,12.94369617]
[1748283690269,2.36555748,2536.4,2536.3,8.0]
[1748283693975,3.16645748,2536.4,2536.3,8.0]